Cogmind - Beta 17 @@@ ROGUE MODE // 2026.06.29 @ 14:01:26 Player: the Result: Destroyed by S-10 Pest with Light Assault Rifle Performance ------------- Evolutions (0) 0 Regions Visited (2) 400 Robots Destroyed (14) 70 Value Destroyed (116) 116 Prototype IDs (1) 20 Alien Tech Used (0) 0 Bonus (0) 0 TOTAL SCORE: 606 Bonus ------- None Cogmind --------- Core Integrity 0/250 Matter 300/300 Energy 99/100 System Corruption 0% Temperature Cool (0) Movement Core (50) Location -10/Mines Parts ------- > --- POWER (1) -------- (None) > --- PROPULSION (2) --- (None) > --- UTILITY (2) ------ Structural Scanner > --- WEAPON (2) ------- (None) > --- INVENTORY (5) ---- Weight Redist. System Weight Redist. System ECM Suite Light Armor Plating Datajack Peak State ------------ > --- POWER ------------ (None) > --- PROPULSION ------- (None) > --- UTILITY ---------- Structural Scanner Seismic Detector > --- WEAPON ----------- Small Laser Advanced Beam Cannon > --- INVENTORY -------- Small Laser Datajack [Rating: 6] Favorites ----------- Power None Propulsion None Utility Structural Scanner Device Structural Scanner Weapon Heavy Hammer Energy Gun Small Laser Energy Cannon Advanced Beam Cannon Impact Weapon Heavy Hammer Build | -11 -10 -10 ------- Run | Yrd Mat Min Slots Evolved . | . . . Power . | . . . Propulsion . | . . . Utility . | . . . Weapon . | . . . Parts Attached 7 | 2 5 . Power . | . . . Engine . | . . . Core . | . . . Reactor . | . . . Propulsion . | . . . Treads . | . . . Leg . | . . . Wheel . | . . . Hover . | . . . Flight . | . . . Utility 3 | . 3 . Device 3 | . 3 . Storage . | . . . Processor . | . . . Hackware . | . . . Protection . | . . . Artifact . | . . . Weapon 4 | 2 2 . Energy Gun 2 | 2 . . Energy Cannon 1 | . 1 . Ballistic Gun . | . . . Ballistic Cannon . | . . . Launcher . | . . . Special Weapon . | . . . Impact Weapon 1 | . 1 . Slashing Weapon . | . . . Piercing Weapon . | . . . Special Melee Weapon . | . . . Unidentified Prototypes 1 | . 1 . Parts Lost 1 | . . 1 Power . | . . . Propulsion . | . . . Utility 1 | . . 1 Weapon . | . . . Highest Loss Streak 1 | . . 1 To Critical Strikes . | . . . Average Backups 3 | . 3 5 Power . | . . . Propulsion . | . . . Utility 2 | . 2 4 Weapon . | . . . Tool/Special . | . . . Unused Backups 5 | . . 5 Power . | . . . Propulsion . | . . . Utility 4 | . . 4 Weapon . | . . . Tool/Special 1 | . . 1 Average Slot Usage (%) 34 | . 38 28 Device 17 | . 19 14 Energy Gun 6 | . 10 . Impact Weapon 10 | . 8 14 Peak Build Rating 6 | 2 6 4 Average Rating 3 | 1 3 2 On Entrance 2 | . 2 4 Avg Prop Armor Cover (%) . | . . . Naked Turns . | . . . Heaviest Build 5 | 2 5 5 Greatest Support 3 | 3 3 3 Greatest Overweight (x) 1 | . 1 1 Average Overweight (x) . | . . . Largest Inventory Capacity 5 | 5 5 5 Average Capacity 5 | 5 5 5 Most Carried 5 | . 5 5 Average Carried 3 | . 3 5 Final Capacity 5 | 5 5 5 Final Carried 5 | . 5 5 Class Distribution -------------------- 100% | Mutant Dominant Class ---------------- Mutant | -10/Materials Mutant | -10/Mines Resources | -11 -10 -10 ----------- Run | Yrd Mat Min Matter Collected 270 | 220 50 . Remotely . | . . . Salvage Created 334 | 100 185 49 Parts 27 | 5 21 1 Haulers Intercepted 1 | . 1 . Recyclers Shooed 1 | 1 . . Parts Field Recycled . | . . . Retrieved Matter . | . . . Parts Self-Destructed . | . . . Prevented . | . . . Parts Restored . | . . . Kills | -11 -10 -10 ------- Run | Yrd Mat Min Combat Hostiles Destroyed 6 | . 3 3 Melee 2 | . . 2 Guns 3 | . 3 . Classes Destroyed 6 | 2 4 . Builder 1 | . 1 . Tunneler 3 | 1 1 1 Hauler 1 | . 1 . Recycler 2 | 1 1 . Watcher 1 | . 1 . Swarmer 6 | . 3 3 Best Kill Streak 7 | 2 7 3 Combat Bots Only 3 | . 3 3 Max Kills in Single Turn 1 | 1 1 1 Gunslinging . | . . . Exploded . | . . . Melee 1 | . . 1 Uniques/NPCs Destroyed . | . . . Combat | -11 -10 -10 -------- Run | Yrd Mat Min Hostile Shots Fired 56 | . 20 36 Missed 11 | . 4 7 Hits 45 | . 16 29 Projectile 45 | . 16 29 Damage Taken 371 | . 152 219 Core 254 | . 95 159 Absorbed by Shields . | . . . Core Remaining (%) 100 | 100 . . Volleys Fired 19 | 7 12 . Largest 2 | 2 2 . Hottest 80 | 80 80 . Shots Fired 38 | 14 24 . Gun 38 | 14 24 . Cannon . | . . . Launcher . | . . . Special . | . . . Kinetic . | . . . Thermal 38 | 14 24 . Explosive . | . . . Electromagnetic . | . . . Robot Hit Streak 6 | 6 3 . Robot Miss Streak 4 | 1 4 . Penetration Max . | . . . Secondary Targets . | . . . Shots Hit Robots 29 | 10 12 7 Core Hits 11 | 3 8 . Critical Kills . | . . . Critical Parts Destroyed 2 | . 1 1 Critical Strikes 2 | . 1 1 Smash 2 | . 1 1 Melee Attacks 12 | . 1 11 Impact 12 | . 1 11 Slashing . | . . . Piercing . | . . . Sneak Attacks 2 | . 1 1 Combat Hostiles . | . . . Follow-up Attacks . | . . . Damage Inflicted 623 | 112 170 341 Guns 231 | 112 119 . Cannons . | . . . Explosions . | . . . Melee 392 | . 51 341 Ramming . | . . . Kinetic . | . . . Thermal 231 | 112 119 . Explosive . | . . . Electromagnetic . | . . . Impact 392 | . 51 341 Slashing . | . . . Piercing . | . . . Highest Corruption . | . . . Average Corruption . | . . . Corruption Purged . | . . . Corruption Blocked . | . . . Overload Shots . | . . . Overflow Damage 220 | . 51 169 Projectiles . | . . . Explosions . | . . . Melee 220 | . 51 169 Knockbacks 1 | . . 1 Impact 1 | . . 1 Kinetic . | . . . Secondary . | . . . Self-Inflicted Damage . | . . . Shots . | . . . Rammed . | . . . Targets Rammed . | . . . Kicked . | . . . Crushed . | . . . Highest Temperature 31 | 12 31 . Average Temperature 5 | 5 5 . Received Heat Transfer . | . . . Siege Activations . | . . . Martial Activations . | . . . Shielding Activations . | . . . Robots Disrupted . | . . . Combat Hostiles . | . . . Robots Corrupted 2 | . . 2 Combat Hostiles 1 | . . 1 Parts Fried 5 | . 1 4 Impact Corruptions 10 | . 2 8 Robots Melted . | . . . Combat Hostiles . | . . . Parts Melted 1 | . 1 . Heat Transferred 525 | 250 275 . Parts Sabotaged . | . . . Parts Stolen . | . . . Parts Stripped . | . . . Power Chain Reactions . | . . . Alert | -11 -10 -10 ------- Run | Yrd Mat Min Maximum Alert Level . | . . . Low Security (%) 100 | 100 100 100 Level 1 . | . . . Level 2 . | . . . Level 3 . | . . . Level 4 . | . . . Level 5 . | . . . High Security . | . . . Max Security . | . . . Peak Influence 69 | 5 69 60 Initial 1 | . . 1 Average 24 | . 26 26 Influence Increases 217 | 10 117 90 Destroy 0b10 Robot/C 120 | . 60 60 Destroy 0b10 Robot/NC 40 | 10 25 5 Destroy Leader 24 | . 14 10 Successful Hack 18 | . 18 . Lose Combat Pursuer 15 | . . 15 Influence Decreases 197 | 10 112 75 Entered New Map 4 | . . 4 Time Decay 192 | 10 112 70 Lost Part 1 | . . 1 Squads Dispatched . | . . . Investigation . | . . . Extermination . | . . . Reinforcement . | . . . Assault . | . . . Garrison . | . . . Intercept . | . . . Searches Triggered . | . . . Construction Impeded . | . . . Haulers Reinforced . | . . . Active Scanning Responses . | . . . Cargo Convoy Interrupts . | . . . Stealth | -11 -10 -10 --------- Run | Yrd Mat Min Distress Signals . | . . . Communications Jammed . | . . . Distress Signals . | . . . Times Spotted 14 | . 7 7 Peak Tracking Total 4 | . 4 3 Tactical Retreats 1 | . . 1 Traps | -11 -10 -10 ------- Run | Yrd Mat Min Traps Triggered 2 | . 2 . Indirectly . | . . . Trap Hack Attempts . | . . . Triggered . | . . . Disarmed . | . . . Reprogrammed . | . . . Reused . | . . . Traps Extracted . | . . . Installed . | . . . Triggered . | . . . Machines | -11 -10 -10 ---------- Run | Yrd Mat Min Machines Disabled . | . . . Max in Single Turn . | . . . Machines Repaired . | . . . Machines Dismantled . | . . . Machines Sabotaged . | . . . Overloaded Fab Kills . | . . . Hacking | -11 -10 -10 --------- Run | Yrd Mat Min Machines Accessed 4 | . 4 . Terminals 4 | . 4 . Fabricators . | . . . Repair Stations . | . . . Recycling Units . | . . . Scanalyzers . | . . . Garrison Access . | . . . Total Hacks 12 | . 12 . Successful 9 | . 9 . Failed 3 | . 3 . Catastrophic . | . . . Database Lockouts . | . . . Manual 10 | . 10 . Terminals 12 | . 12 . Fabricators . | . . . Repair Stations . | . . . Recycling Units . | . . . Scanalyzers . | . . . Garrison Access . | . . . Terminal Hacks 2 | . 2 . Alert Level 1 | . 1 . Registered Components 1 | . 1 . Fabricator Hacks . | . . . Repair Station Hacks . | . . . Recycling Unit Hacks . | . . . Scanalyzer . | . . . Garrison Access Hacks . | . . . Unauthorized Hacks 7 | . 7 . Terminals 7 | . 7 . Botnet 2 | . 2 . Operators 1 | . 1 . Skim 4 | . 4 . Fabricators . | . . . Repair Stations . | . . . Recycling Units . | . . . Scanalyzers . | . . . Garrison Access . | . . . Data Cores Recovered . | . . . Used . | . . . Hacking Detections 1 | . 1 . Full Trace Events . | . . . Feedback Events . | . . . Feedback Blocked . | . . . Robot Schematics Acquired . | . . . Robots Built . | . . . Authchips . | . . . Time . | . . . Total Robot Build Rating . | . . . Part Schematics Acquired . | . . . Parts Built . | . . . Authchips . | . . . Time . | . . . Total Part Build Rating . | . . . Part Studies Acquired . | . . . Parts Repaired . | . . . Time . | . . . Parts Recycled . | . . . Recycled Matter . | . . . Retrieved Matter . | . . . Retrieved Components . | . . . Parts Scanalyzed . | . . . Part Schematics Acquired . | . . . Parts Damaged . | . . . Bothacking | -11 -10 -10 ------------ Run | Yrd Mat Min Used RIF Installer . | . . . Robots Hacked . | . . . Non-combat . | . . . Combat . | . . . Robot Hacks Applied . | . . . Relay Couplers Released . | . . . Fabnet Peak Effective % . | . . . Robots Rewired . | . . . Allies Hacked . | . . . Hacks Repelled . | . . . Allies | -11 -10 -10 -------- Run | Yrd Mat Min Total Allies . | . . . Largest Group . | . . . Highest-Rated Group . | . . . Highest-Rated Ally . | . . . Total Orders . | . . . Ally Attacks . | . . . Total Damage . | . . . Kills . | . . . Allies Corrupted . | . . . Allies Melted . | . . . Intel | -11 -10 -10 ------- Run | Yrd Mat Min Active Infowar (turns) 355 | . 201 154 Structural 355 | . 201 154 Seismic 186 | . 182 4 Robot Analysis Total . | . . . Derelict Logs Recovered 1 | . . 1 Drone Launches . | . . . Drone Recoveries . | . . . Exploration | -11 -10 -10 ------------- Run | Yrd Mat Min Turns Passed 468 | 42 272 154 Spaces Moved 437 | 36 272 129 Core 437 | 36 272 129 Treads . | . . . Legs . | . . . Wheels . | . . . Hover . | . . . Flight . | . . . Fastest Speed 50 | 50 50 50 Average Speed 81 | 50 79 95 Slowest Speed 100 | 50 100 100 Overloaded Moves . | . . . Propulsion Burnouts . | . . . Robots Hopped . | . . . Potential Cave-ins . | . . . Cave-ins Triggered . | . . . Exploration Rate (%) 25 | 3 48 26 Regions Visited 2 Branch Regions 1 Pre-discovered Areas . | . . . Known Exits Taken . | . . . Unknown Exits Taken 2 | 1 1 . Scrap Searched . | . . . Spaces Dug . | . . . Terrain Destroyed . | . . . Melee . | . . . Projectile . | . . . AOE . | . . . Terrain Rammed . | . . . Walls Destroyed . | . . . Machines Disabled . | . . . Actions | -11 -10 -10 --------- Run | Yrd Mat Min Total 487 | 44 302 141 Wait 1 | . 1 . Move 435 | 35 271 129 Hop . | . . . Pick Up 6 | . 6 . Fast Attach 5 | 2 3 . Attach . | . . . Detach 2 | . 2 . Swap 2 | . 2 . Drop 5 | . 4 1 Fire 19 | 7 12 . Melee 12 | . 1 11 Ram . | . . . Kick . | . . . Crush . | . . . Escape Stasis . | . . . Rewire . | . . . Trap . | . . . Miscellaneous . | . . . Route ------- -11/Scrapyard -10/Materials (discovered 2 exits: [*Mat] / [*Min]) -10/Mines (discovered 2 exits: [*Mat] / [Exi]) History --------- Turn | Location | Event 2 | -11/Scrapyard | Met Revision 17 3 | -11/Scrapyard | Discovered new exit (range 15) 43 | -11/Scrapyard | Entered Materials 61 | -10/Materials | Discovered new exit (range 15) 193 | -10/Materials | Discovered new exit (range 15) 310 | -10/Materials | Build established: Mutant 315 | -10/Materials | Entered Mines 328 | -10/Mines | Core integrity fell below 50% 348 | -10/Mines | Core integrity fell below 20% 390 | -10/Mines | Learned Materials garrison access intel 397 | -10/Mines | Deemed a non-threat by the Exiles lab entrance 397 | -10/Mines | Discovered new exit (range 6) 434 | -10/Mines | Discovered new exit (range 6) 469 | -10/Mines | Destroyed by S-10 Pest with Light Assault Rifle Last Messages --------------- 00359_ TJ-MBW(g): "Hehe, this'll put a wrench in their mining defense operations..." 00359_ TJ-MBW(g) slips into the shadows. 00390_ Acquired derelict log, extracted data. Data stored: Materials garrison access intel. 00397_ "No threat detected, you may enter." 00397_ EXIT=FOUND 00436_ Sneak attack on T-07 Excavator. 00436_ Destroyed Mining Laser. 00436_ Destroyed Wheel. 00436_ Destroyed Seismic Detector. 00436_ T-07 Excavator system corrupted by crushing effect. 00436_ T-07 Excavator knocked back. 00437_ T-07 Excavator system terminally corrupted. 00437_ Wheel fried. 00441_ K-01 Serf collects debris. 00463_ Dropped Hvy. Hammer. 00465_ S-10 Pest destroyed. Map ----- +----------------------------------------------------+ | ???????????????????#############??????????????? | | ????????????? ##??????????????? | | ???????????????????## ####### ##??????????????? | | ???????????????????## ####### ##??????????????? | | ???????????????????????????## ##??????????????? | | ??????????????????????####### ##??????????????? | | ??????????????????????####### ##??????????????? | | ??????????????????????## ###=#########???????? | | ??????????????????????## ##%#########???????? | | ??????????????????????### # # ##???????? | | ???????????????????????### % ##???????? | | ????????????????????????## < ##???????? | | ????????????????????????## ## ##???????? | | ????????????????????????## /## ##???????? | | ????????????????????????## s #########???????? | | ????????????????????????## ##############?? | | ????????????????????????### #############? | | ???????????????????????####s #### #### | | ???????????????????????### ## ### | | ??????????????????????### ## | | ?????????????????????#### ## # | | ????????????????????#### #### | | ????????????????????### #### | | ????????????????????## ## ## | | ????????????????????## ####???? | | ??????????############@ t ###????? | | ??????????############ ### ###????? | | ?????##<#### ### ####??? | | ?????## ## ######### ## ###?# ##??? | | ?????#### ######### ## ####?## ? | | ???????#### ###??### ### ####??### ###? | | ???????########??## ########????### ####? | | ?????????####????## ########?????########?? | | ?????????########## ##### ##??????######??? | | ?????????########## ##??????????????? | | ?????????## =% ##??????????????? | | ?????????##% ###??????????????? | | ?????????## #### ####??????????????? | | ?????????## %#### ####???????????????? | | ?????????## #### ####????????????????? | | ?????????## #### ####?????????????????? | | ?????????## ##### ###??????????????????? | | ??######### ####### ###???????????????????? | | ??######### ####?#########???????????????????? | | ??## ^ ###???#######????????????????????? | | ??## ^## ^ ##???????????????????????????????? | | ??### # ###???????????????????????????????? | | ???## # # ####???????????????????????????????? | | ???## # # ###????????????????????????????????? | | ???## ^ ##?????????????????????????????????? | +----------------------------------------------------+ Best States ------------- Heat Dissipation 25 Energy Generation 5 Energy Capacity 100 Matter Stores 300 Matter Capacity 300 Sight Range 16 Terrain Scan Density 10 Evasion (%) 50 Item Schematics ----------------- None Robot Schematics ------------------ None Fabricated ------------ Nothing Repaired ---------- Nothing Studied --------- None Alien Tech Used ----------------- None Achievements -------------- None Challenges ------------ None Game ------ Seed PropulsionTiamatPenetrator Manual? 0 Play Time 00:05:22 Cumulative 780.9 hours Start 2026.06.29 @ 13:56:20 End 2026.06.29 @ 14:01:26 Sessions 1 Manual Loads 0 Difficulty Rogue Special Mode None Game No. 438 Rogue 438 Adventurer 0 Explorer 0 Win Type - Total 39 Types 18/3/7/2/1/2/2/2/1/1 Lore% 95 Gallery% 89 Achievement% 82 Wizard Run 0 Options --------- Layout 1 ASCII 0 Keyboard 0 Movement Numpad Keybinds 0 Fullscreen 2 Font 24/Smallcaps Map View 50x40 Zoom Use 0% Tactical HUD 1 Map Filters NONE Filters NONE Steam 1 RUN: 27701ed4-39e6-4ee7-8612-130d8ebef4b5